{"text_format":"3","workbook":"xlsx","n_sheets":4,"sheets":["Seguimiento de proyecto","Diagrama de Gantt","Acerca de","Datos de gráf. dinámico ocultos"],"not_rendered":{"charts":1,"defined_names":8},"read":"whole","date_system":"1900"}

{"sheet":"Seguimiento de proyecto","index":0,"n_rows":22,"n_cols":7,"rows_kept":22}
["Crea un seguimiento de proyecto en esta hoja de cálculo.\nEl título de esta hoja de cálculo está en la celda B1. \nLa información sobre cómo usar esta hoja de cálculo, incluidas las instrucciones para los lectores de pantalla, está en la hoja de cálculo Acerca de.","Seguimiento de proyecto"]
["La fecha de inicio se puede escribir de forma manual en la celda D2, o bien puedes usar la formula de muestra de la plantilla para encontrar la fecha más temprana en la columna de hitos de la tabla de hitos de abajo.",null,"Fecha de inicio:",{"$f":"IFERROR(IF(MIN(Hitos[Fecha de inicio])=0,TODAY(),MIN(Hitos[Fecha de inicio])),TODAY())","v":"2018-08-04"}]
["La fecha de finalización se puede escribir de forma manual en la celda D3, o bien puedes usar la formula de muestra de la plantilla para encontrar la fecha más lejana en la columna de hitos de la tabla de hitos de abajo.",null,"Fecha de finalización:",{"$f":"IFERROR(IF(MAX(Hitos[Fecha de finalización])=0,TODAY(),MAX(Hitos[Fecha de finalización])),TODAY())","v":"2019-03-02"}]
["La información sobre las columnas de la tabla de hitos está en las celdas B4 a G4.","En la columna siguiente, escribe un conjunto de números secuencial.","Escribe la fecha de inicio del hito o actividad en la columna siguiente.","Escribe la fecha de finalización del hito o actividad en la columna siguiente","Escribe la descripción del hito o actividad en la columna siguiente. Esta descripción aparecerá en el gráfico del proyecto.","Se calcula automáticamente. Los datos siguientes, en esta columna, se usan para representar los hitos y las actividades.","Se calcula automáticamente. Duración de cada tarea "]
["Los encabezados de tabla están en las celdas B5 a G5. \nHay dos columnas ocultas: Las columnas de día de inicio y duración de la tarea de las celdas F5 y G5 se calculan automáticamente y se utilizan para crear el diagrama de Gantt de la hoja de cálculo de diagrama de Gantt. \nLos datos de ejemplo están en las celdas B6 a E21. \nLa siguiente instrucción está en la celda A22.","Puesto","Fecha de inicio","Fecha de finalización","Hito/actividad","Día de inicio","Duración de la tarea"]
[null,1,{"$f":"TODAY()-10","v":"2018-08-24"},{"$f":"Hitos[[#This Row],[Fecha de inicio]]+10","v":"2018-09-03"},"Inicio",{"$f":"IFERROR(IF(OR(LEN(Hitos[[#This Row],[Fecha de inicio]])=0,LEN(Hitos[[#This Row],[Fecha de finalización]])=0),\"\",INT(C6)-INT($C$6)),\"\")","v":0},{"$f":"IFERROR(IF(Hitos[[#This Row],[Día de inicio]]=0,DATEDIF(Hitos[[#This Row],[Fecha de inicio]],Hitos[[#This Row],[Fecha de finalización]],\"d\")+1,IF(LEN(Hitos[[#This Row],[Día de inicio]])=0,\"\",DATEDIF(Hitos[[#This Row],[Fecha de inicio]],Hitos[[#This Row],[Fecha de finalización]],\"d\")+1)),0)","v":11}]
[null,2,{"$f":"TODAY()+5","v":"2018-09-08"},{"$f":"Hitos[[#This Row],[Fecha de inicio]]+15","v":"2018-09-23"},{"$f":"\"Actividad\"&\" \"&ROW($A2)","v":"Actividad 2"},{"$f":"IFERROR(IF(OR(LEN(Hitos[[#This Row],[Fecha de inicio]])=0,LEN(Hitos[[#This Row],[Fecha de finalización]])=0),\"\",INT(C7)-INT($C$6)),\"\")","v":15},{"$f":"IFERROR(IF(Hitos[[#This Row],[Día de inicio]]=0,DATEDIF(Hitos[[#This Row],[Fecha de inicio]],Hitos[[#This Row],[Fecha de finalización]],\"d\")+1,IF(LEN(Hitos[[#This Row],[Día de inicio]])=0,\"\",DATEDIF(Hitos[[#This Row],[Fecha de inicio]],Hitos[[#This Row],[Fecha de finalización]],\"d\")+1)),0)","v":16}]
[null,3,{"$f":"TODAY()-30","v":"2018-08-04"},{"$f":"Hitos[[#This Row],[Fecha de inicio]]+152","v":"2019-01-03"},{"$f":"\"Actividad\"&\" \"&ROW($A3)","v":"Actividad 3"},{"$f":"IFERROR(IF(OR(LEN(Hitos[[#This Row],[Fecha de inicio]])=0,LEN(Hitos[[#This Row],[Fecha de finalización]])=0),\"\",INT(C8)-INT($C$6)),\"\")","v":{"v":-20,"d":"-20 "}},{"$f":"IFERROR(IF(Hitos[[#This Row],[Día de inicio]]=0,DATEDIF(Hitos[[#This Row],[Fecha de inicio]],Hitos[[#This Row],[Fecha de finalización]],\"d\")+1,IF(LEN(Hitos[[#This Row],[Día de inicio]])=0,\"\",DATEDIF(Hitos[[#This Row],[Fecha de inicio]],Hitos[[#This Row],[Fecha de finalización]],\"d\")+1)),0)","v":153}]
[null,4,{"$f":"TODAY()+2","v":"2018-09-05"},{"$f":"Hitos[[#This Row],[Fecha de inicio]]+150","v":"2019-02-02"},"Actividad 4",{"$f":"IFERROR(IF(OR(LEN(Hitos[[#This Row],[Fecha de inicio]])=0,LEN(Hitos[[#This Row],[Fecha de finalización]])=0),\"\",INT(C9)-INT($C$6)),\"\")","v":12},{"$f":"IFERROR(IF(Hitos[[#This Row],[Día de inicio]]=0,DATEDIF(Hitos[[#This Row],[Fecha de inicio]],Hitos[[#This Row],[Fecha de finalización]],\"d\")+1,IF(LEN(Hitos[[#This Row],[Día de inicio]])=0,\"\",DATEDIF(Hitos[[#This Row],[Fecha de inicio]],Hitos[[#This Row],[Fecha de finalización]],\"d\")+1)),0)","v":151}]
[null,5,{"$f":"TODAY()+15","v":"2018-09-18"},{"$f":"Hitos[[#This Row],[Fecha de inicio]]+14","v":"2018-10-02"},"Actividad 5",{"$f":"IFERROR(IF(OR(LEN(Hitos[[#This Row],[Fecha de inicio]])=0,LEN(Hitos[[#This Row],[Fecha de finalización]])=0),\"\",INT(C10)-INT($C$6)),\"\")","v":25},{"$f":"IFERROR(IF(Hitos[[#This Row],[Día de inicio]]=0,DATEDIF(Hitos[[#This Row],[Fecha de inicio]],Hitos[[#This Row],[Fecha de finalización]],\"d\")+1,IF(LEN(Hitos[[#This Row],[Día de inicio]])=0,\"\",DATEDIF(Hitos[[#This Row],[Fecha de inicio]],Hitos[[#This Row],[Fecha de finalización]],\"d\")+1)),0)","v":15}]
[null,6,{"$f":"TODAY()+30","v":"2018-10-03"},{"$f":"Hitos[[#This Row],[Fecha de inicio]]+45","v":"2018-11-17"},"Actividad 6",{"$f":"IFERROR(IF(OR(LEN(Hitos[[#This Row],[Fecha de inicio]])=0,LEN(Hitos[[#This Row],[Fecha de finalización]])=0),\"\",INT(C11)-INT($C$6)),\"\")","v":40},{"$f":"IFERROR(IF(Hitos[[#This Row],[Día de inicio]]=0,DATEDIF(Hitos[[#This Row],[Fecha de inicio]],Hitos[[#This Row],[Fecha de finalización]],\"d\")+1,IF(LEN(Hitos[[#This Row],[Día de inicio]])=0,\"\",DATEDIF(Hitos[[#This Row],[Fecha de inicio]],Hitos[[#This Row],[Fecha de finalización]],\"d\")+1)),0)","v":46}]
[null,7,{"$f":"TODAY()+45","v":"2018-10-18"},{"$f":"Hitos[[#This Row],[Fecha de inicio]]+56","v":"2018-12-13"},"Actividad 7",{"$f":"IFERROR(IF(OR(LEN(Hitos[[#This Row],[Fecha de inicio]])=0,LEN(Hitos[[#This Row],[Fecha de finalización]])=0),\"\",INT(C12)-INT($C$6)),\"\")","v":55},{"$f":"IFERROR(IF(Hitos[[#This Row],[Día de inicio]]=0,DATEDIF(Hitos[[#This Row],[Fecha de inicio]],Hitos[[#This Row],[Fecha de finalización]],\"d\")+1,IF(LEN(Hitos[[#This Row],[Día de inicio]])=0,\"\",DATEDIF(Hitos[[#This Row],[Fecha de inicio]],Hitos[[#This Row],[Fecha de finalización]],\"d\")+1)),0)","v":57}]
[null,8,{"$f":"TODAY()+60","v":"2018-11-02"},{"$f":"Hitos[[#This Row],[Fecha de inicio]]+30","v":"2018-12-02"},"Actividad 8",{"$f":"IFERROR(IF(OR(LEN(Hitos[[#This Row],[Fecha de inicio]])=0,LEN(Hitos[[#This Row],[Fecha de finalización]])=0),\"\",INT(C13)-INT($C$6)),\"\")","v":70},{"$f":"IFERROR(IF(Hitos[[#This Row],[Día de inicio]]=0,DATEDIF(Hitos[[#This Row],[Fecha de inicio]],Hitos[[#This Row],[Fecha de finalización]],\"d\")+1,IF(LEN(Hitos[[#This Row],[Día de inicio]])=0,\"\",DATEDIF(Hitos[[#This Row],[Fecha de inicio]],Hitos[[#This Row],[Fecha de finalización]],\"d\")+1)),0)","v":31}]
[null,9,{"$f":"TODAY()+37","v":"2018-10-10"},{"$f":"Hitos[[#This Row],[Fecha de inicio]]+22","v":"2018-11-01"},"Actividad 9",{"$f":"IFERROR(IF(OR(LEN(Hitos[[#This Row],[Fecha de inicio]])=0,LEN(Hitos[[#This Row],[Fecha de finalización]])=0),\"\",INT(C14)-INT($C$6)),\"\")","v":47},{"$f":"IFERROR(IF(Hitos[[#This Row],[Día de inicio]]=0,DATEDIF(Hitos[[#This Row],[Fecha de inicio]],Hitos[[#This Row],[Fecha de finalización]],\"d\")+1,IF(LEN(Hitos[[#This Row],[Día de inicio]])=0,\"\",DATEDIF(Hitos[[#This Row],[Fecha de inicio]],Hitos[[#This Row],[Fecha de finalización]],\"d\")+1)),0)","v":23}]
[null,10,{"$f":"TODAY()-20","v":"2018-08-14"},{"$f":"Hitos[[#This Row],[Fecha de inicio]]+160","v":"2019-01-21"},"Actividad 10",{"$f":"IFERROR(IF(OR(LEN(Hitos[[#This Row],[Fecha de inicio]])=0,LEN(Hitos[[#This Row],[Fecha de finalización]])=0),\"\",INT(C15)-INT($C$6)),\"\")","v":{"v":-10,"d":"-10 "}},{"$f":"IFERROR(IF(Hitos[[#This Row],[Día de inicio]]=0,DATEDIF(Hitos[[#This Row],[Fecha de inicio]],Hitos[[#This Row],[Fecha de finalización]],\"d\")+1,IF(LEN(Hitos[[#This Row],[Día de inicio]])=0,\"\",DATEDIF(Hitos[[#This Row],[Fecha de inicio]],Hitos[[#This Row],[Fecha de finalización]],\"d\")+1)),0)","v":161}]
[null,11,{"$f":"TODAY()+20","v":"2018-09-23"},{"$f":"Hitos[[#This Row],[Fecha de inicio]]+65","v":"2018-11-27"},"Actividad 11",{"$f":"IFERROR(IF(OR(LEN(Hitos[[#This Row],[Fecha de inicio]])=0,LEN(Hitos[[#This Row],[Fecha de finalización]])=0),\"\",INT(C16)-INT($C$6)),\"\")","v":30},{"$f":"IFERROR(IF(Hitos[[#This Row],[Día de inicio]]=0,DATEDIF(Hitos[[#This Row],[Fecha de inicio]],Hitos[[#This Row],[Fecha de finalización]],\"d\")+1,IF(LEN(Hitos[[#This Row],[Día de inicio]])=0,\"\",DATEDIF(Hitos[[#This Row],[Fecha de inicio]],Hitos[[#This Row],[Fecha de finalización]],\"d\")+1)),0)","v":66}]
[null,12,{"$f":"TODAY()+70","v":"2018-11-12"},{"$f":"Hitos[[#This Row],[Fecha de inicio]]+67","v":"2019-01-18"},"Actividad 12",{"$f":"IFERROR(IF(OR(LEN(Hitos[[#This Row],[Fecha de inicio]])=0,LEN(Hitos[[#This Row],[Fecha de finalización]])=0),\"\",INT(C17)-INT($C$6)),\"\")","v":80},{"$f":"IFERROR(IF(Hitos[[#This Row],[Día de inicio]]=0,DATEDIF(Hitos[[#This Row],[Fecha de inicio]],Hitos[[#This Row],[Fecha de finalización]],\"d\")+1,IF(LEN(Hitos[[#This Row],[Día de inicio]])=0,\"\",DATEDIF(Hitos[[#This Row],[Fecha de inicio]],Hitos[[#This Row],[Fecha de finalización]],\"d\")+1)),0)","v":68}]
[null,13,{"$f":"TODAY()+90","v":"2018-12-02"},{"$f":"Hitos[[#This Row],[Fecha de inicio]]+14","v":"2018-12-16"},"Actividad 13",{"$f":"IFERROR(IF(OR(LEN(Hitos[[#This Row],[Fecha de inicio]])=0,LEN(Hitos[[#This Row],[Fecha de finalización]])=0),\"\",INT(C18)-INT($C$6)),\"\")","v":100},{"$f":"IFERROR(IF(Hitos[[#This Row],[Día de inicio]]=0,DATEDIF(Hitos[[#This Row],[Fecha de inicio]],Hitos[[#This Row],[Fecha de finalización]],\"d\")+1,IF(LEN(Hitos[[#This Row],[Día de inicio]])=0,\"\",DATEDIF(Hitos[[#This Row],[Fecha de inicio]],Hitos[[#This Row],[Fecha de finalización]],\"d\")+1)),0)","v":15}]
[null,14,{"$f":"TODAY()+100","v":"2018-12-12"},{"$f":"Hitos[[#This Row],[Fecha de inicio]]+3","v":"2018-12-15"},"Actividad 14",{"$f":"IFERROR(IF(OR(LEN(Hitos[[#This Row],[Fecha de inicio]])=0,LEN(Hitos[[#This Row],[Fecha de finalización]])=0),\"\",INT(C19)-INT($C$6)),\"\")","v":110},{"$f":"IFERROR(IF(Hitos[[#This Row],[Día de inicio]]=0,DATEDIF(Hitos[[#This Row],[Fecha de inicio]],Hitos[[#This Row],[Fecha de finalización]],\"d\")+1,IF(LEN(Hitos[[#This Row],[Día de inicio]])=0,\"\",DATEDIF(Hitos[[#This Row],[Fecha de inicio]],Hitos[[#This Row],[Fecha de finalización]],\"d\")+1)),0)","v":4}]
[null,15,{"$f":"TODAY()+50","v":"2018-10-23"},{"$f":"Hitos[[#This Row],[Fecha de inicio]]+130","v":"2019-03-02"},"Actividad 15",{"$f":"IFERROR(IF(OR(LEN(Hitos[[#This Row],[Fecha de inicio]])=0,LEN(Hitos[[#This Row],[Fecha de finalización]])=0),\"\",INT(C20)-INT($C$6)),\"\")","v":60},{"$f":"IFERROR(IF(Hitos[[#This Row],[Día de inicio]]=0,DATEDIF(Hitos[[#This Row],[Fecha de inicio]],Hitos[[#This Row],[Fecha de finalización]],\"d\")+1,IF(LEN(Hitos[[#This Row],[Día de inicio]])=0,\"\",DATEDIF(Hitos[[#This Row],[Fecha de inicio]],Hitos[[#This Row],[Fecha de finalización]],\"d\")+1)),0)","v":131}]
[{"$nulls":5},{"$f":"IFERROR(IF(OR(LEN(Hitos[[#This Row],[Fecha de inicio]])=0,LEN(Hitos[[#This Row],[Fecha de finalización]])=0),\"\",INT(C21)-INT($C$6)),\"\")","v":""},{"$f":"IFERROR(IF(Hitos[[#This Row],[Día de inicio]]=0,DATEDIF(Hitos[[#This Row],[Fecha de inicio]],Hitos[[#This Row],[Fecha de finalización]],\"d\")+1,IF(LEN(Hitos[[#This Row],[Día de inicio]])=0,\"\",DATEDIF(Hitos[[#This Row],[Fecha de inicio]],Hitos[[#This Row],[Fecha de finalización]],\"d\")+1)),0)","v":""}]
["Para agregar más hitos o actividades, inserta filas nuevas encima de esta línea.\nEsta es la última instrucción en esta hoja de cálculo.","Para agregar más hitos o actividades, inserta filas nuevas encima de esta línea."]

{"sheet":"Diagrama de Gantt","index":1,"n_rows":1,"n_cols":1,"rows_kept":1}
["El diagrama de Gantt con una barra de desplazamiento está en esta hoja de cálculo. \nLa barra de desplazamiento comienza en la celda B29.\nEsta es la última instrucción en esta hoja de cálculo."]

{"sheet":"Acerca de","index":2,"n_rows":6,"n_cols":1,"rows_kept":6}
["Acerca de este libro"]
["\nEscribe los datos en la hoja de cálculo de seguimiento de proyectos, luego desplázate a lo largo de una representación visual de tu escala de tiempo en la hoja de cálculo del diagrama de Gantt. \n"]
["La columna de posición en la hoja de cálculo de seguimiento de proyectos te permite graficar hitos y actividades en líneas separadas. Por ejemplo, puedes tener dos hitos y actividades que se inician en el mismo día y se ejecutan en paralelo. Si tuvieran el mismo valor de posición, se superpondrían en el gráfico. Proporciona dos valores únicos que se ubican en líneas separadas. Pruébalo.\n\nCuando termines el gráfico, es posible que observes marcadores sin ningún texto ni duración establecida en una escala de tiempo específica. A medida que el hito se desplaza hacia afuera del gráfico, estos marcadores indican el final de los hitos que se ubican en el Seguimiento de proyecto. Solo tienes que desplazarte atrás o hacia el principio para ver los hitos que se ubican en el gráfico.\n"]
["Guía para los lectores de pantalla"]
["Hay 4 hojas de cálculo en este libro. \n\nSeguimiento de proyecto\nDiagrama de Gantt\nAcerca de\nDatos de gráfico dinámico (ocultos)\n\nLas instrucciones para cada hoja de cálculo están en la columna A a partir de la celda A1 de cada hoja de cálculo. Se escriben con texto oculto. Cada paso te guiará por la información de esa fila. Cada paso subsiguiente continúa en la celda A2, A3 y así sucesivamente, a menos que se indique lo contrario de forma explícita. Por ejemplo, el texto de instrucciones podría decir \"pasar a la celda A6\" para el siguiente paso. \n\nEl texto oculto no se imprimirá.\n\nPara quitar estas instrucciones de cualquier hoja de cálculo, basta con eliminar la columna A.\n"]
["Esta es la última instrucción en esta hoja de cálculo."]

{"sheet":"Datos de gráf. dinámico ocultos","index":3,"n_rows":10,"n_cols":6,"rows_kept":10,"hidden":true}
["El título de esta hoja de cálculo está en la celda B1.","Datos de gráfico dinámico"]
["El título de incremento de desplazamiento horizontal está en la celda B2.\nPara incrementar manualmente los datos, escribe un valor nuevo en la celda B3.\nLa página de desplazamiento se actualiza automáticamente cuando se pagina la barra de desplazamiento avanza o retrocede en la hoja de cálculo del diagrama de Gantt.","incremento de desplazamiento horizontal"]
["El valor de desplazamiento del diagrama de Gantt que se actualiza automáticamente está en la celda B3.",0]
["El título de la tabla está en la celda B4.","Tabla de datos dinámicos"]
["Los encabezados de tabla están en las celdas B5 a E5. \nHay una nota en la celda F5.\nEsta tabla incluirá hasta un máximo de 5 hitos <a la vez. \nNo modifiques ni elimines esta hoja de cálculo ni su contenido.","hito","fecha","Día de inicio","duración","<: incluye hasta un máximo de 5 hitos a la vez"]
[null,{"$f":"IFERROR(IF(LEN(OFFSET('Seguimiento de proyecto'!$E6,$B$3,0,1,1))=0,\"\",INDEX(Hitos[],'Seguimiento de proyecto'!$B6+$B$3,4)),\"\")","v":"Inicio"},{"$f":"IFERROR(IF(LEN(OFFSET('Seguimiento de proyecto'!$C6,$B$3,0,1,1))=0,End_Date,INDEX(Hitos[],'Seguimiento de proyecto'!$B6+$B$3,2)),\"\")","v":"2018-08-24"},{"$f":"IFERROR(IF(LEN(OFFSET('Seguimiento de proyecto'!$F6,$B$3,0,1,1))=0,\"\",INDEX(Hitos[],'Seguimiento de proyecto'!$B6+$B$3,5)),\"\")","v":0},{"$f":"IFERROR(IF(LEN(OFFSET('Seguimiento de proyecto'!$G6,$B$3,0,1,1))=0,\"\",INDEX(Hitos[],'Seguimiento de proyecto'!$B6+$B$3,6)),\"\")","v":11}]
[null,{"$f":"IFERROR(IF(LEN(OFFSET('Seguimiento de proyecto'!$E7,$B$3,0,1,1))=0,\"\",INDEX(Hitos[],'Seguimiento de proyecto'!$B7+$B$3,4)),\"\")","v":"Actividad 2"},{"$f":"IFERROR(IF(LEN(OFFSET('Seguimiento de proyecto'!$C7,$B$3,0,1,1))=0,End_Date,INDEX(Hitos[],'Seguimiento de proyecto'!$B7+$B$3,2)),\"\")","v":"2018-09-08"},{"$f":"IFERROR(IF(LEN(OFFSET('Seguimiento de proyecto'!$F7,$B$3,0,1,1))=0,\"\",INDEX(Hitos[],'Seguimiento de proyecto'!$B7+$B$3,5)),\"\")","v":15},{"$f":"IFERROR(IF(LEN(OFFSET('Seguimiento de proyecto'!$G7,$B$3,0,1,1))=0,\"\",INDEX(Hitos[],'Seguimiento de proyecto'!$B7+$B$3,6)),\"\")","v":16}]
[null,{"$f":"IFERROR(IF(LEN(OFFSET('Seguimiento de proyecto'!$E8,$B$3,0,1,1))=0,\"\",INDEX(Hitos[],'Seguimiento de proyecto'!$B8+$B$3,4)),\"\")","v":"Actividad 3"},{"$f":"IFERROR(IF(LEN(OFFSET('Seguimiento de proyecto'!$C8,$B$3,0,1,1))=0,End_Date,INDEX(Hitos[],'Seguimiento de proyecto'!$B8+$B$3,2)),\"\")","v":"2018-08-04"},{"$f":"IFERROR(IF(LEN(OFFSET('Seguimiento de proyecto'!$F8,$B$3,0,1,1))=0,\"\",INDEX(Hitos[],'Seguimiento de proyecto'!$B8+$B$3,5)),\"\")","v":-20},{"$f":"IFERROR(IF(LEN(OFFSET('Seguimiento de proyecto'!$G8,$B$3,0,1,1))=0,\"\",INDEX(Hitos[],'Seguimiento de proyecto'!$B8+$B$3,6)),\"\")","v":153}]
[null,{"$f":"IFERROR(IF(LEN(OFFSET('Seguimiento de proyecto'!$E9,$B$3,0,1,1))=0,\"\",INDEX(Hitos[],'Seguimiento de proyecto'!$B9+$B$3,4)),\"\")","v":"Actividad 4"},{"$f":"IFERROR(IF(LEN(OFFSET('Seguimiento de proyecto'!$C9,$B$3,0,1,1))=0,End_Date,INDEX(Hitos[],'Seguimiento de proyecto'!$B9+$B$3,2)),\"\")","v":"2018-09-05"},{"$f":"IFERROR(IF(LEN(OFFSET('Seguimiento de proyecto'!$F9,$B$3,0,1,1))=0,\"\",INDEX(Hitos[],'Seguimiento de proyecto'!$B9+$B$3,5)),\"\")","v":12},{"$f":"IFERROR(IF(LEN(OFFSET('Seguimiento de proyecto'!$G9,$B$3,0,1,1))=0,\"\",INDEX(Hitos[],'Seguimiento de proyecto'!$B9+$B$3,6)),\"\")","v":151}]
[null,{"$f":"IFERROR(IF(LEN(OFFSET('Seguimiento de proyecto'!$E10,$B$3,0,1,1))=0,\"\",INDEX(Hitos[],'Seguimiento de proyecto'!$B10+$B$3,4)),\"\")","v":"Actividad 5"},{"$f":"IFERROR(IF(LEN(OFFSET('Seguimiento de proyecto'!$C10,$B$3,0,1,1))=0,End_Date,INDEX(Hitos[],'Seguimiento de proyecto'!$B10+$B$3,2)),\"\")","v":"2018-09-18"},{"$f":"IFERROR(IF(LEN(OFFSET('Seguimiento de proyecto'!$F10,$B$3,0,1,1))=0,\"\",INDEX(Hitos[],'Seguimiento de proyecto'!$B10+$B$3,5)),\"\")","v":25},{"$f":"IFERROR(IF(LEN(OFFSET('Seguimiento de proyecto'!$G10,$B$3,0,1,1))=0,\"\",INDEX(Hitos[],'Seguimiento de proyecto'!$B10+$B$3,6)),\"\")","v":15}]